bitfinex/quotes_ETHUSD_20241104
["timestamp","ask_amount","ask_price","bid_price","bid_amount"]
[1730716889871,4.04547,2471.9,2471.5,4.046]
[1730716892293,4.04569,2471.8,2471.4,4.8694]
[1730716892605,4.0456,2471.9,2471.4,4.86939]
[1730716892759,4.04565,2471.8,2471.5,0.1915491]
[1730716893091,4.04565,2471.8,2471.4,4.86939]
[1730716893509,0.8303,2472.0,2471.4,4.86939]
[1730716893652,4.87568,2472.0,2471.6,4.04592]
[1730716893858,0.046787,2471.9,2471.6,4.04592]
[1730716895593,0.046787,2471.9,2471.7,0.19154208]
[1730716895766,0.046787,2471.9,2471.6,4.04592]
[1730716895967,0.046787,2471.9,2471.7,0.19154645]
[1730716896215,0.046787,2471.9,2471.7,4.04579]
[1730716896516,8.09049,2472.1,2471.7,4.04579]
[1730716896815,0.0466802,2471.8,2471.7,4.04579]
[1730716897114,0.0466802,2471.8,2471.7,0.19154606]
[1730716897433,4.04531,2472.0,2471.7,0.19154606]
[1730716897569,3.01,2472.8,2471.2,4.86631]
[1730716897570,0.8001802,2471.8,2471.2,4.86631]
[1730716897777,4.04622,2471.5,2471.3,0.19156495]
[1730716898075,0.04625294,2471.4,2471.0,8.91346]
[1730716898381,0.04625294,2471.4,2471.1,4.54487538]
[1730716898586,0.04625294,2471.4,2471.2,0.19157033]
[1730716898908,0.04625294,2471.4,2471.3,0.19157033]
[1730716899122,4.04666,2471.2,2470.8,4.04717]
[1730716899286,4.04666,2471.2,2470.9,0.49811443]
[1730716899620,4.04666,2471.2,2470.8,4.04717]
[1730716899621,0.0459324,2471.1,2471.0,0.19157381]
[1730716900194,0.0459324,2471.1,2470.9,4.04708]
[1730716900404,4.04648,2471.3,2471.0,0.19155423]
[1730716900624,4.04648,2471.3,2471.1,0.19155379]
[1730716900930,4.04648,2471.3,2470.9,4.04708]
[1730716901233,4.04648,2471.3,2471.0,0.19154772]
[1730716901452,4.04648,2471.3,2470.9,4.04708]
[1730716901605,4.04648,2471.3,2471.0,0.19152441]
[1730716901794,4.04648,2471.3,2470.9,4.04708]
[1730716901992,4.04663,2471.2,2471.0,0.19152315]
[1730716902194,4.04678,2471.1,2470.7,4.80174]
[1730716902436,4.04678,2471.1,2470.8,0.49799277]
[1730716902652,4.04678,2471.1,2470.9,0.19152702]
[1730716902828,4.04648,2471.3,2471.0,0.19152702]
[1730716903150,4.57106273,2471.2,2470.8,0.30639576]
[1730716903305,4.57106273,2471.2,2470.9,0.19148318]
[1730716903662,4.57106273,2471.2,2471.0,0.19148318]
[1730716903663,4.04678,2471.1,2471.0,0.19148318]
[1730716903808,4.04678,2471.1,2470.7,0.7544]
[1730716904008,4.04678,2471.1,2470.8,0.191491]
[1730716904363,4.90856427,2471.1,2470.9,0.191491]
[1730716904659,4.04694,2471.0,2470.7,0.7544]
[1730716904805,4.04694,2471.0,2470.6,4.04758]
[1730716904806,4.04694,2471.0,2470.8,0.19145156]
[1730716905010,4.04694,2471.0,2470.9,0.19145156]
[1730716905207,4.04694,2471.0,2470.9,0.19141896]
[1730716906223,4.04694,2471.0,2470.6,4.04758]
[1730716906434,0.86178427,2471.1,2470.7,0.49765152]
[1730716906640,0.52441273,2471.2,2470.8,0.19139577]
[1730716906825,0.52441273,2471.2,2470.9,0.19138759]
[1730716906826,4.57105273,2471.2,2470.9,0.19138759]
[1730716907037,4.57105273,2471.2,2470.7,4.04742]
[1730716907352,4.57105273,2471.2,2470.8,0.19136656]
[1730716907353,4.04686,2471.1,2470.8,0.19136656]
[1730716907574,4.04686,2471.1,2470.7,4.04742]
[1730716907780,4.04686,2471.1,2470.6,4.04758]
[1730716907781,4.04718,2470.9,2470.8,0.19136416]
[1730716907951,4.04718,2470.9,2470.8,0.191369]
[1730716908281,4.04718,2470.9,2470.5,4.82893]
[1730716908431,4.04718,2470.9,2470.6,0.19133894]
[1730716908636,4.04718,2470.9,2470.7,0.19133894]
[1730716908852,4.98210422,2470.8,2470.4,4.108411]
[1730716909099,4.98210422,2470.8,2470.5,0.19135001]
[1730716909315,4.98210422,2470.8,2470.4,0.060581]
[1730716909316,4.83734,2470.6,2470.4,0.060581]
[1730716909592,4.04776,2470.5,2470.4,0.060581]
[1730716909795,4.09356844,2470.5,2470.4,0.060581]
[1730716910155,0.04580844,2470.5,2470.4,0.060581]
[1730716911669,0.82750844,2470.5,2470.4,0.060581]
[1730716912400,0.04580844,2470.5,2470.4,4.108501]
[1730716912762,4.84746,2470.9,2470.4,4.108501]
[1730716912961,0.04563379,2470.5,2470.4,4.108501]
[1730716913188,4.84746,2470.9,2470.4,4.108501]
[1730716913377,0.04563379,2470.5,2470.4,4.108501]
[1730716913997,0.8003,2470.9,2470.5,4.04774]
[1730716914197,4.84748,2470.9,2470.5,4.04774]
[1730716915196,0.8003,2470.9,2470.6,4.04759]
[1730716916372,4.87048,2471.1,2470.4,0.060581]
[1730716916574,4.04695,2471.0,2470.6,4.04752]
[1730716916777,0.8237,2471.1,2470.6,4.04752]
[1730716916971,0.8237,2471.1,2470.7,4.04732]
[1730716917657,0.8237,2471.1,2470.8,4.0472]
[1730716917857,4.04672,2471.2,2470.8,4.0472]
[1730716920579,4.0468,2471.1,2470.7,4.82582]
[1730716920824,4.04663,2471.2,2470.8,4.04726]
[1730716921529,4.83228,2471.3,2470.9,4.0471]
[1730716921832,4.04648,2471.3,2470.9,4.0471]
[1730716922712,0.7747,2471.8,2471.1,0.8047]
[1730716923019,0.7747,2471.8,2471.3,4.04629]
[1730716923221,4.0454,2472.0,2471.5,8.89679]
[1730716923222,4.04537,2472.0,2471.5,8.89679]
[1730716923623,4.04537,2472.0,2471.5,4.85074]
[1730716923933,4.08486077,2471.9,2471.5,4.85074]
[1730716924080,4.08486077,2471.9,2471.5,8.89679]
[1730716924287,4.08486077,2471.9,2471.6,4.04588]
[1730716924288,0.03930077,2471.9,2471.6,4.04588]
[1730716924482,4.08477077,2471.9,2471.5,4.85075]
[1730716925217,0.03930077,2471.9,2471.6,4.04583]
[1730716925615,4.81961,2472.3,2471.7,4.04578]
[1730716925918,4.81961,2472.3,2471.6,8.09168]
[1730716925919,4.04521,2472.1,2471.6,8.09168]
[1730716926224,4.04521,2472.1,2471.7,4.04579]
[1730716926431,0.03926649,2472.0,2471.7,4.04579]
[1730716927022,0.03926649,2472.0,2471.6,4.04581]
[1730716927023,4.08458649,2472.0,2471.6,4.04581]
[1730716927227,4.08458649,2472.0,2471.7,4.04577]
[1730716927228,0.03926649,2472.0,2471.7,4.04577]
[1730716929123,0.03926649,2472.0,2471.7,4.04576]
[1730716929835,4.08458649,2472.0,2471.5,0.8047]
[1730716929990,4.08458649,2472.0,2471.4,4.04625]
[1730716929991,4.84466,2471.9,2471.4,4.04625]
[1730716930191,4.88377003,2471.9,2471.4,4.04625]
[1730716930488,4.04565,2471.8,2471.4,4.04625]
[1730716930694,0.03889648,2471.7,2471.2,0.8104]
[1730716930890,4.04582,2471.7,2471.3,4.04638]
[1730716931195,4.04565,2471.8,2471.3,4.04638]
[1730716931196,0.0387897,2471.6,2471.3,4.04638]
[1730716931405,8.09142,2471.8,2471.3,4.04638]
[1730716931621,0.80702123,2471.5,2471.1,4.04669]
[1730716931827,4.81446,2471.5,2471.0,4.04682]
[1730716932040,4.08490443,2471.4,2471.0,4.04682]
[1730716932195,0.03861443,2471.4,2471.0,8.09368]
[1730716932394,0.03861443,2471.4,2471.1,4.04677]
[1730716932889,4.04581,2471.7,2471.3,4.04645]
[1730716933197,4.04575,2471.8,2471.2,4.85399]
[1730716933198,0.03899065,2471.6,2471.2,4.85399]
[1730716933543,4.04603,2471.6,2471.2,4.04649]
[1730716933840,4.79786,2471.4,2471.0,4.04679]
[1730716934344,0.03881464,2471.3,2471.0,8.09366]
[1730716936039,0.03881464,2471.3,2471.0,4.04679]
[1730716936235,0.03881464,2471.3,2471.1,4.04676]
[1730716937015,0.03881464,2471.3,2471.0,4.04679]
[1730716937427,0.03881464,2471.3,2471.0,8.09361]
[1730716937602,0.03881464,2471.3,2471.1,4.04671]
[1730716938520,0.03881464,2471.3,2471.2,4.04661]
[1730716938730,0.03881464,2471.3,2471.2,4.82361]
[1730716938897,4.84102,2471.7,2471.2,4.82361]
[1730716938898,0.7952,2471.7,2471.2,5.632942]
[1730716939101,0.03893466,2471.6,2471.3,4.04632]
[1730716939734,0.03893466,2471.6,2471.3,4.04645]
[1730716941140,4.04614,2471.5,2471.1,4.04666]
[1730716941356,0.40850747,2471.4,2471.1,4.04666]
[1730716941543,0.03852944,2471.4,2471.1,4.04666]
[1730716942229,0.03852944,2471.4,2471.2,4.04656]
[1730716942547,4.04599,2471.6,2471.2,4.04656]
[1730716942753,0.03842262,2471.3,2471.2,4.04656]
[1730716942953,4.04599,2471.6,2471.2,4.04656]
[1730716943108,0.03842262,2471.3,2471.2,4.04656]
[1730716943310,4.04599,2471.6,2471.2,4.04656]
[1730716943505,0.03863625,2471.5,2471.2,4.04656]
[1730716944447,0.03863625,2471.5,2471.2,4.04653]
[1730716944652,4.08476625,2471.5,2471.1,4.04667]
[1730716945161,0.03863625,2471.5,2471.1,4.04667]
[1730716945462,4.84106,2471.7,2471.2,4.04661]
[1730716945668,0.03853142,2471.4,2471.2,4.04661]
[1730716945836,4.84106,2471.7,2471.2,4.04661]
[1730716946036,0.0384246,2471.3,2471.2,4.04661]
[1730716946238,4.84106,2471.7,2471.2,4.23829123]
[1730716946434,0.0384246,2471.3,2471.2,4.04661]
[1730716946635,4.84106,2471.7,2471.2,4.04661]
[1730716946928,0.03842559,2471.3,2471.2,4.04661]
[1730716947155,4.08478602,2471.6,2471.2,4.04661]
[1730716947354,0.03842559,2471.3,2471.2,4.04661]
[1730716947621,4.84106,2471.7,2471.2,4.04661]
[1730716947827,0.03842559,2471.3,2471.2,4.04661]
[1730716948154,0.03842559,2471.3,2471.2,4.23839201]
[1730716948324,4.04602,2471.6,2471.2,4.23839201]
[1730716948524,4.04602,2471.6,2471.2,4.04661]
[1730716948525,0.03842559,2471.3,2471.2,4.04661]
[1730716948726,4.04602,2471.6,2471.2,4.04661]
[1730716948923,4.84103,2471.7,2471.3,4.04645]
[1730716949164,0.7952,2471.7,2471.4,4.04628]
[1730716950480,0.762,2471.9,2471.5,4.04598]
[1730716950628,0.762,2472.1,2471.6,4.04585]
[1730716950974,4.80717,2472.1,2471.6,4.04592]
[1730716951824,4.80717,2472.1,2471.7,4.0457]
[1730716952730,0.762,2472.1,2471.7,4.0457]
[1730716953140,4.80716,2472.1,2471.7,4.0457]
[1730716953667,4.80716,2472.1,2471.6,4.04592]
[1730716953668,4.04531,2472.0,2471.6,4.04592]
[1730716953977,0.03775586,2471.9,2471.6,4.04592]
[1730716954479,0.03775586,2471.9,2471.7,4.2375976]
[1730716954645,0.03775586,2471.9,2471.7,4.04576]
[1730716954848,4.80726,2472.1,2471.7,4.04576]
[1730716955070,0.03711885,2471.8,2471.7,4.04576]
[1730716955236,4.80726,2472.1,2471.7,4.23756572]
[1730716955429,0.03706912,2471.8,2471.5,4.04598]
[1730716955632,4.04539,2472.0,2471.6,4.23771719]
[1730716955839,0.03701502,2471.7,2471.6,4.04593]
[1730716956158,0.03701502,2471.7,2471.6,0.19179887]
[1730716956351,0.762,2472.1,2471.6,0.19180833]
[1730716956552,0.03705169,2471.7,2471.5,4.04598]
[1730716956753,0.762,2472.1,2471.6,0.19180886]
[1730716956963,0.03694487,2471.6,2471.5,4.04598]
[1730716957163,4.04557,2471.9,2471.5,4.23778895]
[1730716957376,4.526327,2471.9,2471.6,0.19180895]
[1730716957562,0.03719683,2471.8,2471.5,4.04598]
[1730716957750,0.03719683,2471.8,2471.6,0.19180913]
[1730716957933,0.03719683,2471.8,2471.5,4.04598]
[1730716958133,0.03719683,2471.8,2471.6,0.19180943]
[1730716958432,0.03719683,2471.8,2471.5,4.04598]
[1730716958644,0.03719683,2471.8,2471.6,0.19181233]
[1730716958875,0.03719683,2471.8,2471.5,4.04598]
[1730716959033,0.03719683,2471.8,2471.6,0.19181161]
[1730716959234,0.03719683,2471.8,2471.5,4.04598]
[1730716959462,0.03719683,2471.8,2471.6,0.1918134]
[1730716959664,0.03719683,2471.8,2471.5,4.04598]
[1730716959873,0.03719683,2471.8,2471.6,0.19181352]
[1730716960031,0.03719683,2471.8,2471.5,4.04598]
[1730716960369,0.03719683,2471.8,2471.6,0.1918135]
[1730716960572,0.03719683,2471.8,2471.5,4.04598]
[1730716960731,0.03719683,2471.8,2471.6,4.23773187]
[1730716960931,4.04544,2472.0,2471.6,4.04593]
[1730716961180,0.03709002,2471.7,2471.6,4.1268472]
[1730716961337,4.80716,2472.1,2471.7,4.04573]
[1730716962042,4.80714,2472.1,2471.7,4.04576]
[1730716962233,0.762,2472.1,2471.8,4.04563]
[1730716963341,4.80714,2472.1,2471.7,8.90146]
[1730716963538,4.80714,2472.1,2471.7,4.8557]
[1730716963744,4.04537,2472.0,2471.6,4.04586]
[1730716964142,5.692355,2472.1,2471.6,4.04586]
[1730716964559,9.737635,2472.1,2471.6,4.04586]
[1730716964885,4.04544,2472.0,2471.4,4.04616]
[1730716965127,4.04586,2471.7,2471.5,0.19176855]
[1730716965390,0.487046,2471.7,2471.4,4.04628]
[1730716965557,0.487046,2471.7,2471.5,0.1917738]
[1730716965738,0.487046,2471.7,2471.2,4.86552]
[1730716965937,4.532866,2471.7,2471.3,4.23814785]
[1730716966172,4.532866,2471.7,2471.4,0.19177785]
[1730716966386,0.8246,2471.5,2471.2,4.04661]
[1730716966542,0.8246,2471.5,2471.3,4.23821935]
[1730716966740,0.8246,2471.5,2471.4,0.19178935]
[1730716968962,0.86193239,2471.5,2471.4,0.19178935]
[1730716969988,4.90805239,2471.5,2471.1,4.04671]
[1730716970210,4.90805239,2471.5,2471.2,0.19183058]
[1730716970342,4.90805239,2471.5,2471.3,0.19183058]
[1730716970542,4.90805239,2471.5,2471.1,8.09337]
[1730716970787,0.86193239,2471.5,2471.2,4.23837086]
[1730716970946,0.86193239,2471.5,2471.3,0.19183086]
[1730716971145,0.03733239,2471.5,2471.4,0.19183086]
[1730716971580,0.03733239,2471.5,2471.4,4.23811086]
[1730716971893,0.7531,2471.7,2471.4,4.23811086]
[1730716972041,0.03730166,2471.5,2471.4,4.04628]
[1730716972241,0.03730166,2471.5,2471.4,4.23810448]
[1730716972474,0.7531,2471.7,2471.4,4.23810448]
[1730716972678,0.03726696,2471.5,2471.4,4.04628]
[1730716972891,0.7531,2471.7,2471.4,4.23812214]
[1730716973183,0.7531,2471.7,2471.3,4.04638]
[1730716973344,4.7989,2471.7,2471.3,8.09276]
[1730716973856,0.03737873,2471.6,2471.3,8.09276]
[1730716974956,0.03737873,2471.6,2471.4,0.19187257]
[1730716975270,0.03737873,2471.6,2471.3,8.09276]
[1730716975473,0.03737873,2471.6,2471.4,0.19190028]
[1730716975683,0.03737873,2471.6,2471.3,8.09276]
[1730716975898,0.03737873,2471.6,2471.4,0.19190123]
[1730716976199,0.03737873,2471.6,2471.5,0.19190123]
[1730716977886,0.03737873,2471.6,2471.3,4.04636]
[1730716978297,0.03737873,2471.6,2471.4,0.1919282]
[1730716978606,0.03737873,2471.6,2471.5,0.1919282]
[1730716979032,4.08333873,2471.6,2471.5,0.1919282]
[1730716979307,4.04676,2471.2,2470.8,4.36721245]
[1730716979463,4.04628,2471.4,2470.9,4.5462097]
[1730716979664,0.035418,2471.1,2471.0,0.4991897]
[1730716979962,0.0355654,2471.1,2471.0,0.4991897]
[1730716980163,4.04647,2471.3,2471.0,0.4991897]
[1730716980503,4.04647,2471.3,2471.1,0.19198739]
[1730716980708,4.04647,2471.3,2471.2,0.19198739]
[1730716981612,5.753175,2471.3,2471.2,0.19198739]
[1730716981908,4.04673,2471.2,2470.7,4.43141742]
[1730716982207,4.04678,2471.1,2470.8,0.49921015]
[1730716982393,4.04678,2471.1,2470.9,0.49921015]
[1730716982701,4.04678,2471.1,2471.0,0.19199525]
[1730716983271,4.937991,2471.1,2471.0,0.19199525]
[1730716983513,5.753391,2471.1,2471.0,0.19199525]
[1730716983819,4.04718,2470.9,2470.5,0.38403383]
[1730716984037,4.04718,2470.9,2470.4,4.901031]
[1730716984038,4.0474,2470.8,2470.6,0.49918682]
[1730716984371,4.04718,2470.9,2470.7,0.19198628]
[1730716984566,5.0272491,2470.9,2470.5,4.04774]
[1730716984797,4.04728,2470.8,2470.6,0.19180988]
[1730716985023,4.04728,2470.8,2470.7,0.19180988]
[1730716985315,5.0272491,2470.9,2470.5,0.30691854]
[1730716985468,8.09437,2470.9,2470.6,0.1918123]
[1730716985804,4.04718,2470.9,2470.7,0.1918123]
[1730716986117,4.04718,2470.9,2470.5,4.04768]
[1730716986297,4.04718,2470.9,2470.6,0.19180724]
[1730716986482,4.04718,2470.9,2470.5,4.04768]
[1730716986483,4.04718,2470.9,2470.7,0.19180724]
[1730716986688,4.04718,2470.9,2470.4,0.060581]
[1730716986689,4.86529,2470.7,2470.4,0.060581]
[1730716987007,4.86485,2470.9,2470.5,4.54644825]
[1730716987223,4.86485,2470.9,2470.6,0.19181856]
[1730716987518,4.86485,2470.9,2470.7,0.19181856]
[1730716987684,4.86485,2470.9,2470.5,4.04773]
[1730716988068,4.86485,2470.9,2470.6,0.1918065]
[1730716988264,4.04728,2470.8,2470.4,4.108491]
[1730716988510,4.04728,2470.8,2470.5,0.19181198]
[1730716988817,4.86485,2470.9,2470.6,0.19181198]
[1730716988971,4.86485,2470.9,2470.5,4.04775]
[1730716989171,4.86485,2470.9,2470.6,0.19181555]
[1730716989372,4.86485,2470.9,2470.5,4.04775]
[1730716989573,4.86485,2470.9,2470.6,0.19180392]
[1730716989815,8.91205,2470.9,2470.5,4.04775]
[1730716990109,8.91205,2470.9,2470.6,0.1918054]
[1730716990308,8.91205,2470.9,2470.5,4.04775]
[1730716990566,3.01,2471.6,2470.6,0.19180475]
[1730716990718,4.04653,2471.3,2470.9,4.04709]
[1730716991215,4.04653,2471.3,2470.9,8.09411]
[1730716991423,4.04653,2471.3,2470.9,4.04702]
[1730716992121,4.04629,2471.4,2471.0,0.19181572]
[1730716992317,4.04629,2471.4,2471.0,4.04692]
[1730716992736,4.86733,2471.5,2471.0,4.04684]
[1730716992737,8.91356,2471.5,2471.0,4.04684]
[1730716992959,4.04629,2471.4,2471.0,4.04684]
[1730716993253,4.04629,2471.4,2471.0,4.451524]
[1730716993454,4.04629,2471.4,2471.1,0.19184673]
[1730716993760,4.04646,2471.3,2470.9,4.87608]
[1730716993954,4.04629,2471.4,2471.0,4.23877421]
[1730716994156,4.04629,2471.4,2470.9,0.829]
[1730716994368,4.04646,2471.3,2471.0,0.19184125]
[1730716994673,4.04646,2471.3,2470.9,8.9232]
[1730716994885,4.04646,2471.3,2471.0,0.19186417]
[1730716995033,0.8211,2471.5,2471.1,0.19186417]
[1730716995034,4.04632,2471.4,2471.1,0.19186417]
[1730716995376,4.04632,2471.4,2471.0,4.04693]
[1730716996154,4.04632,2471.4,2470.9,5.76842]
[1730716996155,4.04647,2471.3,2470.9,5.76842]
[1730716996365,4.04647,2471.3,2471.0,0.19183199]
[1730716996689,4.04647,2471.3,2470.9,5.76842]
[1730716996690,4.04647,2471.3,2470.9,9.81545]
[1730716996875,4.04647,2471.3,2471.0,0.19182748]
[1730716997084,4.04647,2471.3,2470.9,9.81545]
[1730716997247,4.04647,2471.3,2471.0,0.19180873]
[1730716997577,4.04631,2471.4,2471.0,4.04687]
[1730716998515,4.04645,2471.3,2470.9,4.04697]
[1730716998673,4.04666,2471.2,2471.0,0.19178396]
[1730716998870,4.04666,2471.2,2470.8,4.0472]
[1730716999069,4.04666,2471.2,2470.9,0.19179014]
[1730716999322,4.04635,2471.4,2470.9,4.04696]
[1730716999611,0.8211,2471.5,2471.1,4.04669]
[1730716999612,4.86726,2471.5,2471.1,4.04669]
[1730716999813,4.04631,2471.4,2471.0,4.81592]
[1730717000276,4.86723,2471.5,2471.1,4.04675]
[1730717000675,8.91349,2471.5,2471.0,4.81592]
[1730717001521,4.86723,2471.5,2471.1,4.04675]
[1730717001690,4.80987,2471.7,2471.2,4.04648]
[1730717001879,4.80987,2471.7,2471.3,4.0464]
[1730717002299,0.764,2471.7,2471.3,4.0464]
[1730717002520,0.764,2471.7,2471.1,5.17035252]
[1730717002521,0.7876,2471.6,2471.1,5.17035252]
[1730717002728,4.83367,2471.6,2471.2,0.19173688]
[1730717002879,4.83367,2471.6,2471.1,4.86355]
[1730717003079,4.83367,2471.6,2471.2,4.04661]
[1730717003508,8.87976,2471.6,2471.2,4.04661]
[1730717004020,4.83367,2471.6,2471.2,4.04661]
[1730717004193,4.04614,2471.5,2471.1,4.86365]
[1730717004519,4.04614,2471.5,2471.2,0.19178863]
[1730717004815,4.83362,2471.6,2471.2,4.0466]
[1730717005121,0.7876,2471.6,2471.2,4.12753111]
[1730717005343,4.04581,2471.7,2471.3,4.23816934]
[1730717005618,4.04581,2471.7,2471.3,4.04637]
[1730717006931,4.04555,2471.9,2471.4,4.81663]
[1730717007088,4.8477,2472.0,2471.6,4.04586]
[1730717007480,4.8477,2472.0,2471.5,4.04601]
[1730717007481,4.04547,2471.9,2471.5,4.04601]
[1730717007713,4.04547,2471.9,2471.5,8.09207]
[1730717008015,4.04565,2471.8,2471.4,4.81671]
[1730717008326,4.04565,2471.8,2471.5,0.19177343]
[1730717008486,4.04565,2471.8,2471.4,4.04621]
[1730717008894,4.04565,2471.8,2471.5,0.19175765]
[1730717009126,4.04565,2471.8,2471.4,4.04621]
[1730717009328,4.04565,2471.8,2471.5,0.19174487]
[1730717009624,4.04565,2471.8,2471.4,4.04621]
[1730717009786,4.04565,2471.8,2471.5,0.19172637]
[1730717009988,4.04565,2471.8,2471.4,4.04621]
[1730717010408,4.04565,2471.8,2471.5,0.19172582]
[1730717010690,4.04549,2471.9,2471.5,4.0461]
[1730717015521,4.04593,2471.7,2471.3,4.0464]
[1730717015830,4.04593,2471.7,2471.4,0.19185962]
[1730717016014,4.04593,2471.7,2471.5,0.19185962]
[1730717016214,4.04593,2471.7,2471.3,4.0464]
[1730717016422,4.04593,2471.7,2471.4,0.19186912]
[1730717016584,4.04593,2471.7,2471.5,0.19186912]
[1730717016788,4.04593,2471.7,2471.3,4.0464]
[1730717016988,4.04593,2471.7,2471.4,0.1918682]
[1730717017223,4.04593,2471.7,2471.5,0.1918682]
[1730717017425,4.04593,2471.7,2471.3,4.0464]
[1730717017730,4.04593,2471.7,2471.4,0.1918771]
[1730717017939,4.04593,2471.7,2471.5,0.1918771]
[1730717018094,4.04593,2471.7,2471.3,4.04635]
[1730717018423,4.04593,2471.7,2471.4,0.19188412]
[1730717018632,4.04593,2471.7,2471.5,0.19188412]
[1730717018830,4.04593,2471.7,2471.3,4.04638]
[1730717018992,4.04593,2471.7,2471.4,0.19188468]
[1730717019192,4.04593,2471.7,2471.5,0.19188468]
[1730717019392,4.04593,2471.7,2471.3,8.09276]
[1730717019587,4.04593,2471.7,2471.4,0.19189268]
[1730717019829,4.04593,2471.7,2471.5,0.19189268]
[1730717020005,4.04593,2471.7,2471.3,8.09276]
[1730717020191,4.04593,2471.7,2471.4,0.19188886]
[1730717020393,4.0457,2471.8,2471.5,0.19188886]
[1730717020612,4.0457,2471.8,2471.4,4.04614]
[1730717020949,4.0457,2471.8,2471.5,0.19189451]
[1730717021147,4.0457,2471.8,2471.4,4.04614]
[1730717021348,8.09149,2471.8,2471.5,0.19190318]
[1730717021548,4.0457,2471.8,2471.4,4.04614]
[1730717021850,8.09143,2471.8,2471.5,0.19190049]
[1730717022015,8.09143,2471.8,2471.4,4.04614]
[1730717022216,4.0457,2471.8,2471.5,0.19190215]
[1730717022552,8.09142,2471.8,2471.4,4.04614]
[1730717022849,4.04582,2471.7,2471.5,0.19190669]
[1730717023015,4.04582,2471.7,2471.3,4.04635]
[1730717023214,4.04582,2471.7,2471.4,0.19190805]
[1730717023411,4.04582,2471.7,2471.5,0.19190805]
[1730717023755,0.88933,2471.9,2471.4,4.04628]
[1730717023907,0.88933,2471.9,2471.5,0.19191325]
[1730717023908,4.04569,2471.8,2471.5,0.19191325]
[1730717024263,4.04569,2471.8,2471.4,4.04628]
[1730717024544,4.04569,2471.8,2471.5,0.19192101]
[1730717024749,4.04569,2471.8,2471.4,4.04628]
[1730717024943,4.04569,2471.8,2471.5,0.19191817]
[1730717025151,4.04569,2471.8,2471.4,4.04628]
[1730717025313,4.04569,2471.8,2471.5,0.19192489]
[1730717025512,4.04596,2471.6,2471.2,4.8382]
[1730717025760,4.04628,2471.4,2471.3,0.191925]
[1730717026454,4.04627,2471.5,2471.3,0.191925]
[1730717026625,8.09252,2471.5,2471.4,0.191925]
[1730717026953,0.887282,2471.5,2471.4,0.191925]
[1730717027280,4.82626,2471.6,2471.4,0.191925]
[1730717027408,4.82626,2471.6,2471.2,4.04657]
[1730717027739,0.7803,2471.6,2471.3,0.19196661]
[1730717027937,4.82628,2471.6,2471.4,0.19196661]
[1730717028188,4.82628,2471.6,2471.2,4.04659]
[1730717028603,4.82628,2471.6,2471.0,4.04683]
[1730717028604,4.04624,2471.5,2471.3,0.19201054]
[1730717028800,0.7684,2471.3,2470.9,4.86532]
[1730717029109,4.81492,2471.3,2471.0,0.49931328]
[1730717029276,4.04662,2471.2,2471.1,0.19203492]
[1730717031102,8.8615,2471.3,2471.1,0.19203492]
[1730717031407,4.81492,2471.3,2470.9,4.04707]
[1730717031561,4.81492,2471.3,2471.0,0.19197206]
[1730717031777,4.81492,2471.3,2471.1,0.19197217]
[1730717032080,4.81492,2471.3,2470.9,4.04707]
[1730717032280,4.81492,2471.3,2471.0,0.19197172]
[1730717032480,4.81492,2471.3,2471.1,0.19197172]
[1730717032678,4.83161,2471.4,2471.0,4.04692]
[1730717032917,0.7853,2471.4,2471.1,0.19193297]
[1730717033239,0.7853,2471.6,2471.2,4.2384043]
[1730717033536,1.66293626,2472.0,2471.6,4.04589]
[1730717033537,4.83193,2472.0,2471.6,4.04589]
[1730717034628,4.04547,2471.9,2471.5,8.09204]
[1730717035012,4.04547,2471.9,2471.5,4.04598]
[1730717035592,4.04547,2471.9,2471.6,0.19190948]
[1730717035785,4.04547,2471.9,2471.5,4.04598]
[1730717035985,4.04547,2471.9,2471.6,0.19188634]
[1730717036218,4.04547,2471.9,2471.5,8.09201]
[1730717036219,4.04547,2471.9,2471.5,4.04598]
[1730717036427,4.04547,2471.9,2471.7,0.7659]
[1730717036633,4.04515,2472.1,2471.7,4.81162]
[1730717037600,4.04515,2472.1,2471.5,0.885821]
[1730717037601,4.04531,2472.0,2471.6,4.04593]
[1730717037893,4.80231,2472.0,2471.6,4.04593]
[1730717038404,0.757,2472.0,2471.6,4.04593]
[1730717038597,0.757,2472.0,2471.7,4.04578]
[1730717040196,4.04556,2471.9,2471.5,0.8322]
[1730717040384,4.04556,2471.9,2471.6,0.19184763]
[1730717040593,4.04556,2471.9,2471.5,4.8783]
[1730717040789,4.04556,2471.9,2471.6,0.19183894]
[1730717041030,4.04556,2471.9,2471.5,4.8783]
[1730717041222,4.04556,2471.9,2471.6,0.19183858]
[1730717041393,4.04556,2471.9,2471.5,4.8783]
[1730717041596,4.04556,2471.9,2471.6,0.19183143]
[1730717041900,4.04556,2471.9,2471.5,4.8783]
[1730717042126,4.04556,2471.9,2471.6,0.19183028]
[1730717042339,4.04556,2471.9,2471.5,4.8783]
[1730717042489,4.04556,2471.9,2471.6,0.19183242]
[1730717042825,4.04556,2471.9,2471.5,4.8783]
[1730717043026,4.04556,2471.9,2471.6,0.19182779]
[1730717043253,4.04556,2471.9,2471.5,4.8783]
[1730717043453,4.04556,2471.9,2471.6,0.19194033]
[1730717043652,4.04556,2471.9,2471.5,4.8783]
[1730717043837,4.04556,2471.9,2471.6,0.1919417]
[1730717044149,4.80231,2472.0,2471.5,4.87819]
[1730717044325,4.0451,2472.2,2471.6,4.82574613]
[1730717044526,4.0451,2472.2,2471.7,4.23758407]
[1730717044724,4.0451,2472.2,2471.7,4.04566]
[1730717045113,0.7514,2472.3,2471.7,0.08091061]
[1730717045353,4.04455,2472.5,2472.1,4.04504]
[1730717045565,4.0448,2472.4,2471.9,4.84839]
[1730717045748,4.0448,2472.4,2472.0,4.0453]
[1730717045749,4.04467,2472.4,2472.0,4.0453]
[1730717047954,4.04482,2472.3,2471.9,4.84839]
[1730717048125,0.7514,2472.6,2471.9,4.84838]
[1730717048334,4.04471,2472.4,2472.0,4.0453]